fUSD/lending_fUSD_20240220
["ID","MTS","AMOUNT","RATE_DAILY","PERIOD"]
[314568073,1708428676183,-810.09,0.00036986,2]
[314568074,1708428676192,-2476.69,0.00036986,2]
[314568075,1708428676202,-1155.56,0.00036986,2]
[314568076,1708428676211,-1124.17,0.00036986,2]
[314568077,1708428676220,-1254.68,0.00036986,2]
[314568078,1708428676230,-1076.93,0.00036986,2]
[314568079,1708428676238,-590.14,0.00036986,2]
[314568080,1708428676247,-768.15,0.00036986,2]
[314568081,1708428676257,-621.95,0.00036986,2]
[314568082,1708428676266,-1180.17,0.00036986,2]
[314568083,1708428676274,-939.54,0.00036986,2]
[314568084,1708428676284,-500.0,0.00036986,2]
[314568085,1708428676293,-939.56,0.00036986,2]
[314568086,1708428676302,-500.0,0.00036986,2]
[314568087,1708428676311,-500.0,0.00036986,2]
[314568088,1708428676320,-1613.29,0.00036986,2]
[314568089,1708428676329,-686.66,0.00036986,2]
[314568090,1708428676340,-840.36,0.00036986,2]
[314568091,1708428676349,-640.13,0.00036986,2]
[314568092,1708428676357,-3991.12,0.00036986,2]
[314568093,1708428676366,-520.0,0.00036986,2]
[314568094,1708428676375,-1023.38,0.00036986,2]
[314568095,1708428676385,-692.3,0.00036986,2]
[314568096,1708428676395,-1621.7,0.00036986,2]
[314568097,1708428676404,-500.0,0.00036986,2]
[314568098,1708428676413,-500.0,0.00036986,2]
[314568099,1708428676422,-8295.38,0.00036986,2]
[314568100,1708428676432,-2486.09,0.00036986,2]
[314568101,1708428676441,-841.07,0.00036986,2]
[314568102,1708428676450,-500.0,0.00036986,2]
[314568103,1708428676459,-1744.2,0.00036986,2]
[314568104,1708428676468,-1344.84,0.00036986,2]
[314568105,1708428676477,-673.36,0.00036986,2]
[314568106,1708428676487,-500.0,0.00036986,2]
[314568107,1708428676496,-685.99,0.00036986,2]
[314568108,1708428676505,-500.0,0.00036986,2]
[314568109,1708428676514,-500.0,0.00036986,2]
[314568110,1708428676524,-1329.24,0.00036986,2]
[314568111,1708428676533,-2449.79,0.00036986,2]
[314568112,1708428676543,-500.0,0.00036986,2]
[314568113,1708428676552,-500.0,0.00036986,2]
[314568114,1708428676561,-856.56,0.00036986,2]
[314568115,1708428676570,-500.0,0.00036986,2]
[314568116,1708428676580,-559.34,0.00036986,2]
[314568117,1708428676590,-504.39,0.00036986,2]
[314568118,1708428676599,-500.0,0.00036986,2]
[314568119,1708428676609,-771.78,0.00036986,2]
[314568120,1708428676618,-500.0,0.00036986,2]
[314568121,1708428676627,-500.0,0.00036986,2]
[314568122,1708428676637,-564.66597112,0.00036986,2]
[314568123,1708428676648,-682.05,0.00036986,2]
[314568124,1708428676658,-547.61,0.00036986,2]
[314568125,1708428676670,-1060.07,0.00036986,2]
[314568126,1708428676680,-828.05,0.00036986,2]
[314568127,1708428676690,-628.37,0.00036986,2]
[314568128,1708428676699,-500.0,0.00036986,2]
[314568129,1708428676709,-887.17,0.00036986,2]
[314568130,1708428676718,-500.0,0.00036986,2]
[314568131,1708428676728,-673.43,0.00036986,2]
[314568132,1708428676737,-500.0,0.00036986,2]
[314568133,1708428676747,-734.03,0.00036986,2]
[314568134,1708428676756,-1738.82,0.00036986,2]
[314568135,1708428676766,-500.0,0.00036986,2]
[314568136,1708428676775,-500.0,0.00036986,2]
[314568137,1708428676784,-779.08,0.00036986,2]
[314568138,1708428676794,-543.22,0.00036986,2]
[314568139,1708428676803,-1012.35,0.00036986,2]
[314568140,1708428676813,-684.48,0.00036986,2]
[314568141,1708428676823,-500.0,0.00036986,2]
[314568142,1708428676833,-807.34,0.00036986,2]
[314568143,1708428676844,-986.67,0.00036986,2]
[314568144,1708428676853,-500.0,0.00036986,2]
[314568145,1708428676863,-1647.99,0.00036986,2]
[314568146,1708428676873,-2456.88,0.00036986,2]
[314568147,1708428676883,-500.0,0.00036986,2]
[314568148,1708428676893,-1042.87,0.00036986,2]
[314568149,1708428676903,-1470.47,0.00036986,2]
[314568150,1708428676912,-2585.94,0.00036986,2]
[314568151,1708428676922,-500.0,0.00036986,2]
[314568152,1708428676932,-500.0,0.00036986,2]
[314568153,1708428676942,-100000.0,0.00037,7]
[314568154,1708428676951,-231.54285427,0.00037,2]
[314568155,1708428676961,-357296.8531223,0.00037,4]
[314568156,1708428676971,-1374.34248885,0.00037,3]
[314568157,1708428676980,-150.0,0.00037,10]
[314568158,1708428676990,-12542.0,0.00037,2]
[314568159,1708428676999,-200.0,0.00037,11]
[314568160,1708428677009,-2000.0,0.00037,2]
[314568161,1708428677018,-1050.0,0.00037,3]
[314568162,1708428677029,-634.78,0.00037075,2]
[314568163,1708428677038,-500.0,0.00037081,2]
[314568164,1708428677048,-2859.22,0.00037081,2]
[314568165,1708428677058,-1223.88,0.00037081,2]
[314568166,1708428677068,-500.0,0.00037081,2]
[314568167,1708428677077,-500.0,0.00037081,2]
[314568168,1708428677088,-1141.71417735,0.00037109,10]
[314568169,1708428677098,-157.0212031,0.00037198,14]
[314568170,1708428677108,-603.28,0.0003723,2]
[314568171,1708428677117,-500.0,0.0003726,2]
[314568172,1708428677127,-500.0,0.0003726,2]
[314568173,1708428677136,-500.0,0.0003726,2]
[314568174,1708428677146,-500.0,0.0003726,2]
[314568175,1708428677156,-641.09,0.0003726,2]
[314568176,1708428677165,-500.0,0.0003726,2]
[314568177,1708428677175,-500.0,0.0003726,2]
[314568178,1708428677185,-174.95002393,0.0003726,2]
[314568179,1708428677195,-257.54510678,0.0003726,2]
[314568180,1708428677205,-500.0,0.0003726,2]
[314568181,1708428677215,-500.0,0.0003726,2]
[314568182,1708428677225,-500.0,0.0003726,2]
[314568183,1708428677234,-169.72333941,0.0003726,2]
[314568184,1708428677244,-500.0,0.0003726,2]
[314568185,1708428677253,-512.86,0.0003726,2]
[314568186,1708428677263,-500.0,0.0003726,2]
[314568187,1708428677273,-500.0,0.0003726,2]
[314568188,1708428677283,-500.0,0.0003726,2]
[314568189,1708428677293,-500.0,0.0003726,2]
[314568190,1708428677304,-500.0,0.0003726,2]
[314568191,1708428677313,-500.0,0.0003726,2]
[314568192,1708428677323,-1116.86,0.0003726,2]
[314568193,1708428677333,-288.10525228,0.0003726,2]
[314568194,1708428677344,-962.0,0.0003726,2]
[314568195,1708428677353,-500.0,0.0003726,2]
[314568196,1708428677363,-500.0,0.0003726,2]
[314568197,1708428677372,-500.0,0.0003726,2]
[314568198,1708428677382,-500.0,0.0003726,2]
[314568199,1708428677391,-1157.69,0.0003726,2]
[314568200,1708428677401,-500.0,0.0003726,2]
[314568201,1708428677411,-500.0,0.0003726,2]
[314568202,1708428677420,-500.0,0.0003726,2]
[314568203,1708428677430,-500.0,0.0003726,2]
[314568204,1708428677440,-500.0,0.0003726,2]
[314568205,1708428677449,-632.15,0.0003726,2]
[314568206,1708428677459,-500.0,0.0003726,2]
[314568207,1708428677469,-500.0,0.0003726,2]
[314568208,1708428677479,-500.0,0.0003726,2]
[314568209,1708428677490,-500.0,0.0003726,2]
[314568210,1708428677499,-500.0,0.0003726,2]
[314568211,1708428677509,-500.0,0.0003726,2]
[314568212,1708428677519,-500.0,0.0003726,2]
[314568213,1708428677529,-500.0,0.0003726,2]
[314568214,1708428677538,-490.77170119,0.0003726,2]
[314568215,1708428677548,-500.0,0.0003726,2]
[314568216,1708428677558,-500.0,0.0003726,2]
[314568217,1708428677568,-500.0,0.0003726,2]
[314568218,1708428677577,-500.0,0.0003726,2]
[314568219,1708428677587,-500.0,0.0003726,2]
[314568220,1708428677597,-517.29521923,0.0003726,2]
[314568221,1708428677607,-488.80750311,0.0003726,2]
[314568222,1708428677616,-500.0,0.0003726,2]
[314568223,1708428677626,-565.54,0.0003726,2]
[314568224,1708428677635,-500.0,0.0003726,2]
[314568225,1708428677648,-500.0,0.0003726,2]
[314568226,1708428677658,-599.69540473,0.0003726,2]
[314568227,1708428677667,-500.0,0.0003726,2]
[314568228,1708428677677,-500.0,0.0003726,2]
[314568229,1708428677687,-500.0,0.0003726,2]
[314568230,1708428677697,-500.0,0.0003726,2]
[314568231,1708428677706,-500.0,0.0003726,2]
[314568232,1708428677715,-500.0,0.0003726,2]
[314568233,1708428677724,-500.0,0.0003726,2]
[314568234,1708428677734,-481.85565922,0.0003726,2]
[314568235,1708428677745,-500.0,0.0003726,2]
[314568236,1708428677754,-500.0,0.0003726,2]
[314568237,1708428677763,-500.0,0.0003726,2]
[314568238,1708428677773,-500.0,0.0003726,2]
[314568239,1708428677783,-507.0,0.0003726,2]
[314568240,1708428677793,-500.0,0.0003726,2]
[314568241,1708428677803,-500.0,0.0003726,2]
[314568242,1708428677813,-500.0,0.0003726,2]
[314568243,1708428677823,-500.0,0.0003726,2]
[314568244,1708428677833,-500.0,0.0003726,2]
[314568245,1708428677844,-500.0,0.0003726,2]
[314568246,1708428677854,-433.26585548,0.0003726,2]
[314568247,1708428677864,-500.0,0.0003726,2]
[314568248,1708428677873,-500.0,0.0003726,2]
[314568249,1708428677884,-500.0,0.0003726,2]
[314568250,1708428677894,-500.0,0.0003726,2]
[314568251,1708428677903,-500.0,0.0003726,2]
[314568252,1708428677913,-500.0,0.0003726,2]
[314568253,1708428677923,-500.0,0.0003726,2]
[314568254,1708428677932,-507.42,0.0003726,2]
[314568255,1708428677942,-500.0,0.0003726,2]
[314568256,1708428677951,-500.0,0.0003726,2]
[314568257,1708428677961,-799.18,0.0003726,2]
[314568258,1708428677971,-521.8,0.0003726,2]
[314568259,1708428677981,-500.0,0.0003726,2]
[314568260,1708428677991,-500.0,0.0003726,2]
[314568261,1708428678000,-500.0,0.0003726,2]
[314568262,1708428678010,-500.0,0.0003726,2]
[314568263,1708428678020,-500.0,0.0003726,2]
[314568264,1708428678030,-157.38,0.0003726,2]
[314568265,1708428678040,-500.0,0.0003726,2]
[314568266,1708428678050,-500.0,0.0003726,2]
[314568267,1708428678060,-500.0,0.0003726,2]
[314568268,1708428678070,-591.53254458,0.0003726,2]
[314568269,1708428678079,-500.0,0.0003726,2]
[314568270,1708428678091,-500.0,0.0003726,2]
[314568271,1708428678100,-548.23759451,0.0003726,2]
[314568272,1708428678110,-506.62,0.0003726,2]
[314568273,1708428678119,-500.0,0.0003726,2]
[314568274,1708428678128,-500.0,0.0003726,2]
[314568275,1708428678138,-500.0,0.0003726,2]
[314568276,1708428678148,-500.0,0.0003726,2]
[314568277,1708428678187,-878.5,0.0003726,2]
[314568278,1708428678197,-590.31,0.0003726,2]
[314568279,1708428678207,-649.42,0.0003726,2]
[314568280,1708428678216,-500.0,0.0003726,2]
[314568281,1708428678226,-500.0,0.0003726,2]
[314568282,1708428678236,-657.53,0.0003726,2]
[314568283,1708428678245,-500.0,0.0003726,2]
[314568284,1708428678255,-242.76336527,0.0003726,2]
[314568285,1708428678265,-579.04693606,0.0003726,2]
[314568286,1708428678274,-500.0,0.0003726,2]
[314568287,1708428678284,-561.53,0.0003726,2]
[314568288,1708428678293,-510.94,0.0003726,2]
[314568289,1708428678304,-500.0,0.0003726,2]
[314568290,1708428678313,-2751.38,0.0003726,2]
[314568291,1708428678323,-537.42,0.0003726,2]
[314568292,1708428678332,-500.0,0.0003726,2]
[314568293,1708428678344,-1597.23,0.0003726,2]
[314568294,1708428678353,-500.0,0.0003726,2]
[314568295,1708428678362,-537.79944241,0.0003726,2]
[314568296,1708428678371,-179.16483182,0.0003726,2]
[314568297,1708428678381,-1371.89,0.0003726,2]
[314568298,1708428678391,-500.0,0.0003726,2]
[314568299,1708428678400,-639.83,0.0003726,2]
[314568300,1708428678410,-500.0,0.0003726,2]
[314568301,1708428678419,-2100.88,0.0003726,2]
[314568302,1708428678429,-1430.51,0.0003726,2]
[314568303,1708428678438,-500.0,0.0003726,2]
[314568304,1708428678448,-500.0,0.0003726,2]
[314568305,1708428678458,-519.67,0.0003726,2]
[314568306,1708428678467,-500.0,0.0003726,2]
[314568307,1708428678476,-661.83,0.0003726,2]
[314568308,1708428678486,-1640.57,0.0003726,2]
[314568309,1708428678496,-1385.07,0.0003726,2]
[314568310,1708428678506,-516.63,0.0003726,2]
[314568311,1708428678515,-500.0,0.0003726,2]
[314568312,1708428678525,-500.0,0.0003726,2]
[314568313,1708428678535,-500.0,0.0003726,2]
[314568314,1708428678545,-2406.39,0.0003726,2]
[314568315,1708428678555,-544.73127283,0.0003726,2]
[314568316,1708428678565,-1286.92,0.0003726,2]
[314568317,1708428678575,-538.32,0.0003726,2]
[314568318,1708428678585,-1144.29,0.0003726,2]
[314568319,1708428678597,-755.77,0.0003726,2]
[314568320,1708428678606,-500.0,0.0003726,2]
[314568321,1708428678615,-2001.39,0.0003726,2]
[314568322,1708428678625,-578.37812891,0.0003726,2]
[314568323,1708428678635,-500.0,0.0003726,2]
[314568324,1708428678645,-1514.61,0.0003726,2]
[314568325,1708428678656,-500.0,0.0003726,2]
[314568326,1708428678668,-500.0,0.0003726,2]
[314568327,1708428678678,-500.0,0.0003726,2]
[314568328,1708428678688,-841.62,0.0003726,2]
[314568329,1708428678698,-896.66,0.0003726,2]
[314568330,1708428678708,-500.0,0.0003726,2]
[314568331,1708428678719,-955.19,0.0003726,2]
[314568332,1708428678729,-759.4,0.0003726,2]
[314568333,1708428678739,-1219.95,0.0003726,2]
[314568334,1708428678750,-500.0,0.0003726,2]
[314568335,1708428678761,-4914.38,0.0003726,2]
[314568336,1708428678772,-1960.91,0.0003726,2]
[314568337,1708428678783,-1232.52,0.0003726,2]
[314568338,1708428678794,-632.25,0.0003726,2]
[314568339,1708428678804,-500.0,0.0003726,2]
[314568340,1708428678815,-2283.84,0.0003726,2]
[314568341,1708428678825,-7298.9,0.0003726,2]
[314568342,1708428678836,-500.0,0.0003726,2]
[314568343,1708428678849,-2168.59,0.0003726,2]
[314568344,1708428678860,-20540.21,0.0003726,2]
[314568345,1708428678870,-500.0,0.0003726,2]
[314568346,1708428678880,-500.0,0.0003726,2]
[314568347,1708428678890,-2164.58,0.0003726,2]
[314568348,1708428678900,-500.0,0.0003726,2]
[314568349,1708428678910,-500.0,0.0003726,2]
[314568350,1708428678921,-500.0,0.0003726,2]
[314568351,1708428678931,-840.87,0.0003726,2]
[314568352,1708428678942,-750.12,0.0003726,2]
[314568353,1708428678952,-881.59,0.0003726,2]
[314568354,1708428678963,-1166.03,0.0003726,2]
[314568355,1708428678973,-500.0,0.0003726,2]
[314568356,1708428678984,-500.0,0.0003726,2]
[314568357,1708428678994,-501.87,0.0003726,2]
[314568358,1708428679006,-4997.98,0.0003726,2]
[314568359,1708428679016,-500.0,0.0003726,2]
[314568360,1708428679026,-880.32,0.0003726,2]
[314568361,1708428679036,-500.0,0.0003726,2]
[314568362,1708428679046,-500.0,0.0003726,2]
[314568363,1708428679056,-690.76,0.0003726,2]
[314568364,1708428679066,-1448.63,0.0003726,2]
[314568365,1708428679076,-500.0,0.0003726,2]
[314568366,1708428679090,-905.43,0.0003726,2]
[314568367,1708428679100,-500.0,0.0003726,2]
[314568368,1708428679110,-500.0,0.0003726,2]
[314568369,1708428679119,-1005.05,0.0003726,2]
[314568370,1708428679129,-3198.4,0.0003726,2]
[314568371,1708428679140,-759.38,0.0003726,2]
[314568372,1708428679149,-500.0,0.0003726,2]
[314568373,1708428679160,-500.0,0.0003726,2]
[314568374,1708428679170,-1446.16,0.0003726,2]
[314568375,1708428679364,-649.83,0.0003726,2]
[314568376,1708428679374,-1827.29,0.0003726,2]
[314568377,1708428679384,-622.17,0.0003726,2]
[314568378,1708428679394,-838.08,0.0003726,2]
[314568379,1708428679404,-500.0,0.0003726,2]
[314568380,1708428679413,-678.18,0.0003726,2]
[314568381,1708428679422,-727.92,0.0003726,2]
[314568382,1708428679432,-907.49,0.0003726,2]
[314568383,1708428679441,-6265.46,0.0003726,2]
[314568384,1708428679450,-500.0,0.0003726,2]
[314568385,1708428679460,-859.39,0.0003726,2]
[314568386,1708428679470,-500.0,0.0003726,2]
[314568387,1708428679479,-500.0,0.0003726,2]
[314568388,1708428679489,-866.49,0.0003726,2]
[314568389,1708428679498,-552.75765281,0.0003726,2]
[314568390,1708428679508,-3587.46,0.0003726,2]
[314568391,1708428679517,-500.0,0.0003726,2]
[314568392,1708428679527,-500.0,0.0003726,2]
[314568393,1708428679536,-1001.76,0.0003726,2]
[314568394,1708428679545,-600.49,0.0003726,2]
[314568395,1708428679555,-737.98,0.0003726,2]
[314568396,1708428679564,-500.0,0.0003726,2]
[314568397,1708428679573,-1615.46,0.0003726,2]
[314568398,1708428679583,-500.0,0.0003726,2]
[314568399,1708428679595,-3233.84,0.0003726,2]
[314568400,1708428679605,-2658.71,0.0003726,2]
[314568401,1708428679615,-804.08,0.0003726,2]
[314568402,1708428679625,-759.27,0.0003726,2]
[314568403,1708428679634,-500.0,0.0003726,2]
[314568404,1708428679644,-1025.73,0.0003726,2]
[314568405,1708428679654,-1374.99,0.0003726,2]
[314568406,1708428679665,-633.58,0.0003726,2]
[314568407,1708428679675,-654.59,0.0003726,2]
[314568408,1708428679684,-500.0,0.0003726,2]
[314568409,1708428679694,-625.77202711,0.0003726,2]
[314568410,1708428679706,-720.34,0.0003726,2]
[314568411,1708428679716,-750.78,0.0003726,2]
[314568412,1708428679726,-500.0,0.0003726,2]
[314568413,1708428679735,-1574.12,0.0003726,2]
[314568414,1708428679746,-500.0,0.0003726,2]
[314568415,1708428679756,-552.85,0.0003726,2]
[314568416,1708428679766,-1149.16,0.0003726,2]
[314568417,1708428679775,-810.09,0.0003726,2]
[314568418,1708428679785,-2476.69,0.0003726,2]
[314568419,1708428679795,-1155.56,0.0003726,2]
[314568420,1708428679804,-1254.68,0.0003726,2]
[314568421,1708428679814,-1124.17,0.0003726,2]
[314568422,1708428679824,-1076.93,0.0003726,2]
[314568423,1708428679833,-590.14,0.0003726,2]
[314568424,1708428679845,-768.15,0.0003726,2]
[314568425,1708428679855,-621.95,0.0003726,2]
[314568426,1708428679865,-1180.17,0.0003726,2]
[314568427,1708428679875,-939.54,0.0003726,2]
[314568428,1708428679885,-500.0,0.0003726,2]
[314568429,1708428679894,-939.56,0.0003726,2]
[314568430,1708428679904,-500.0,0.0003726,2]
[314568431,1708428679913,-500.0,0.0003726,2]
[314568432,1708428679923,-1613.29,0.0003726,2]
[314568433,1708428679932,-686.66,0.0003726,2]
[314568434,1708428679942,-840.36,0.0003726,2]
[314568435,1708428679952,-640.13,0.0003726,2]
[314568436,1708428679961,-3991.12,0.0003726,2]
[314568437,1708428679971,-520.0,0.0003726,2]
[314568438,1708428679980,-1023.38,0.0003726,2]
[314568439,1708428679990,-692.3,0.0003726,2]
[314568440,1708428680000,-500.0,0.0003726,2]
[314568441,1708428680010,-1621.7,0.0003726,2]
[314568442,1708428680019,-500.0,0.0003726,2]
[314568443,1708428680029,-8295.38,0.0003726,2]
[314568444,1708428680038,-2486.09,0.0003726,2]
[314568445,1708428680048,-841.07,0.0003726,2]
[314568446,1708428680058,-500.0,0.0003726,2]
[314568447,1708428680067,-1744.2,0.0003726,2]
[314568448,1708428680076,-1344.84,0.0003726,2]
[314568449,1708428680085,-673.36,0.0003726,2]
[314568450,1708428680095,-500.0,0.0003726,2]
[314568451,1708428680104,-685.99,0.0003726,2]
[314568452,1708428680114,-500.0,0.0003726,2]
[314568453,1708428680123,-500.0,0.0003726,2]
[314568454,1708428680132,-1329.24,0.0003726,2]
[314568455,1708428680142,-2449.79,0.0003726,2]
[314568456,1708428680152,-500.0,0.0003726,2]
[314568457,1708428680161,-500.0,0.0003726,2]
[314568458,1708428680172,-856.56,0.0003726,2]
[314568459,1708428680183,-500.0,0.0003726,2]
[314568460,1708428680193,-559.34,0.0003726,2]
[314568461,1708428680203,-504.39,0.0003726,2]
[314568462,1708428680213,-500.0,0.0003726,2]
[314568463,1708428680223,-771.78,0.0003726,2]
[314568464,1708428680233,-500.0,0.0003726,2]
[314568465,1708428680243,-500.0,0.0003726,2]
[314568466,1708428680253,-682.05,0.0003726,2]
[314568467,1708428680262,-547.61,0.0003726,2]
[314568468,1708428680272,-1060.07,0.0003726,2]
[314568469,1708428680282,-828.05,0.0003726,2]
[314568470,1708428680292,-628.37,0.0003726,2]
[314568471,1708428680301,-887.17,0.0003726,2]
[314568472,1708428680311,-500.0,0.0003726,2]
[314568473,1708428680321,-673.43,0.0003726,2]
[314568474,1708428680330,-500.0,0.0003726,2]
[314568475,1708428680341,-734.03,0.0003726,2]
[314568476,1708428680351,-1738.82,0.0003726,2]
[314568477,1708428680360,-500.0,0.0003726,2]
[314568478,1708428680370,-779.08,0.0003726,2]
[314568479,1708428680380,-500.0,0.0003726,2]
[314568480,1708428680390,-543.22,0.0003726,2]
[314568481,1708428680400,-1012.35,0.0003726,2]
[314568482,1708428680410,-684.48,0.0003726,2]
[314568483,1708428680420,-500.0,0.0003726,2]
[314568484,1708428680430,-807.34,0.0003726,2]
[314568485,1708428680439,-986.67,0.0003726,2]
[314568486,1708428680449,-500.0,0.0003726,2]
[314568487,1708428680458,-1647.99,0.0003726,2]
[314568488,1708428680467,-2456.88,0.0003726,2]
[314568489,1708428680476,-500.0,0.0003726,2]
[314568490,1708428680486,-1042.87,0.0003726,2]
[314568491,1708428680494,-1470.47,0.0003726,2]
[314568492,1708428680503,-2585.94,0.0003726,2]
[314568493,1708428680513,-500.0,0.0003726,2]
[314568494,1708428680522,-500.0,0.0003726,2]
[314568495,1708428680531,-1141.71417735,0.00037273,10]
[314568496,1708428680540,-154.01270854,0.00037283,2]
[314568497,1708428680549,-18995.46425992,0.00037328,2]
[314568498,1708428680559,-301.2167885,0.00037355,2]
[314568499,1708428680568,-2859.22,0.00037355,2]
[314568500,1708428680577,-1223.88,0.00037355,2]
[314568501,1708428680588,-500.0,0.00037355,2]
[314568502,1708428680598,-500.0,0.00037355,2]
[314568503,1708428680608,-166.34,0.00037397,2]
[314568504,1708428680617,-36190.84,0.000374,7]
[314568505,1708428680626,-200.0,0.000374,11]
[314568506,1708428680635,-151.1,0.00037426,2]
[314568507,1708428680645,-227.56142316,0.00037434,2]
[314568508,1708428680654,-1141.71417735,0.00037436,10]
[314568509,1708428680665,-157.0212031,0.00037498,14]
[314568510,1708428680674,-57038.05,0.000375,7]
[314568511,1708428680684,-200.0,0.000375,12]
[314568512,1708428680693,-153.0,0.00037508,7]
[314568513,1708428680703,-500.0,0.00037534,2]
[314568514,1708428680712,-476.01,0.00037534,2]
[314568515,1708428680721,-500.0,0.00037534,2]
[314568516,1708428680730,-500.0,0.00037534,2]
[314568517,1708428680740,-641.09,0.00037534,2]
[314568518,1708428680749,-500.0,0.00037534,2]
[314568519,1708428680759,-500.0,0.00037534,2]
[314568520,1708428680769,-535.13280108,0.00037534,2]
[314568521,1708428680779,-242.99130731,0.00037534,2]
[314568522,1708428680790,-500.0,0.00037534,2]
[314568523,1708428680800,-500.0,0.00037534,2]
[314568524,1708428680809,-512.86,0.00037534,2]
[314568525,1708428680819,-500.0,0.00037534,2]
[314568526,1708428680829,-500.0,0.00037534,2]
[314568527,1708428680840,-500.0,0.00037534,2]
[314568528,1708428680850,-500.0,0.00037534,2]
[314568529,1708428680859,-389.88613696,0.00037534,2]
[314568530,1708428680869,-500.0,0.00037534,2]
[314568531,1708428680879,-1116.86,0.00037534,2]
[314568532,1708428680889,-962.0,0.00037534,2]
[314568533,1708428680899,-216.55542788,0.00037534,2]
[314568534,1708428680909,-500.0,0.00037534,2]
[314568535,1708428680919,-500.0,0.00037534,2]
[314568536,1708428680929,-500.0,0.00037534,2]
[314568537,1708428680939,-1157.69,0.00037534,2]
[314568538,1708428680949,-500.0,0.00037534,2]
[314568539,1708428680960,-500.0,0.00037534,2]
[314568540,1708428680970,-500.0,0.00037534,2]
[314568541,1708428680982,-434.41047736,0.00037534,2]
[314568542,1708428680992,-500.0,0.00037534,2]
[314568543,1708428681002,-500.0,0.00037534,2]
[314568544,1708428681013,-632.15,0.00037534,2]
[314568545,1708428681023,-500.0,0.00037534,2]
[314568546,1708428681034,-500.0,0.00037534,2]
[314568547,1708428681043,-500.0,0.00037534,2]
[314568548,1708428681053,-500.0,0.00037534,2]
[314568549,1708428681062,-500.0,0.00037534,2]
[314568550,1708428681072,-500.0,0.00037534,2]
[314568551,1708428681082,-373.04021376,0.00037534,2]
[314568552,1708428681095,-500.0,0.00037534,2]
[314568553,1708428681105,-500.0,0.00037534,2]
[314568554,1708428681115,-500.0,0.00037534,2]
[314568555,1708428681124,-500.0,0.00037534,2]
[314568556,1708428681134,-500.0,0.00037534,2]
[314568557,1708428681144,-451.07850578,0.00037534,2]
[314568558,1708428681154,-565.54,0.00037534,2]
[314568559,1708428681163,-500.0,0.00037534,2]
[314568560,1708428681173,-500.0,0.00037534,2]
[314568561,1708428681184,-174.14871539,0.00037534,2]
[314568562,1708428681195,-500.0,0.00037534,2]
[314568563,1708428681206,-500.0,0.00037534,2]
[314568564,1708428681216,-500.0,0.00037534,2]
[314568565,1708428681226,-500.0,0.00037534,2]
[314568566,1708428681235,-500.0,0.00037534,2]
[314568567,1708428681244,-500.0,0.00037534,2]
[314568568,1708428681254,-500.0,0.00037534,2]
[314568569,1708428681263,-500.0,0.00037534,2]
[314568570,1708428681272,-500.0,0.00037534,2]
[314568571,1708428681282,-507.0,0.00037534,2]
[314568572,1708428681291,-500.0,0.00037534,2]